[Event "Lueneburg Open-A 2019"]
[Site "Lueneburg"]
[Date "2019.08.10"]
[Round "8.11"]
[White "Kiesel, Harald"]
[Black "Mueer, Sebastian"]
[Result "1/2-1/2"]
[ECO "B26"]
[WhiteElo "2023"]
[BlackElo "2198"]
[Annotator "NA"]
[PlyCount "187"]
[EventDate "2019.08.03"]
[EventType "swiss"]
[EventCountry "GER"]
[SourceTitle "playchess.com"]
[Source "ChessBase"]
[SourceQuality "1"]
[TimeControl "40/5400+30:1800+30"]

1. e4 {[%emt 0:00:00]} c5 {[%emt 0:00:00]} 2. Nc3 {[%emt 0:00:00]} Nc6 {[%emt 0:00:13]} 3. g3 {[%emt 0:00:00]} g6 {[%emt 0:00:09]} 4. Bg2 {[%emt 0:00:00]} Bg7 {[%emt 0:00:08]} 5. d3 {[%emt 0:00:13]} d6 {[%emt 0:01:04]} 6. Be3 {[%emt 0:00:16]} e5 {[%emt 0:01:45]} 7. Qd2 {[%emt 0:04:15]} Nd4 {[%emt 0:02:37]} 8. Nd1 {[%emt 0:04:11]} h5 {[%emt 0:12:45]} 9. c3 {[%emt 0:03:38]} Ne6 {[%emt 0:01:21]} 10. Nf3 {[%emt 0:06:52]} d5 {[%emt 0:15:50]} 11. exd5 {[%emt 0:05:34]} Qxd5 {[%emt 0:01:33]} 12. O-O {[%emt 0:04:36]} Qd8 {[%emt 0:05:05]} 13. Ng5 {[%emt 0:04:07]} Nxg5 {[%emt 0:01:01]} 14. Bxg5 {[%emt 0:01:12]} Ne7 {[%emt 0:00:24]} 15. Re1 {[%emt 0:03:23]} O-O {[%emt 0:04:41]} 16. Bh6 {[%emt 0:06:23]} Bxh6 {[%emt 0:00:48]} 17. Qxh6 {[%emt 0:00:03]} Nf5 {[%emt 0:03:08]} 18. Qc1 {[%emt 0:04:50]} Re8 {[%emt 0:01:21]} 19. Qc2 {[%emt 0:03:57]} Rb8 {[%emt 0:05:00]} 20. Ne3 {[%emt 0:01:51]} Nd6 {[%emt 0:03:44]} 21. Re2 {[%emt 0:05:22]} Kg7 {[%emt 0:08:35]} 22. Rae1 {[%emt 0:02:43]} f6 {[%emt 0:00:28]} 23. Qa4 {[%emt 0:04:40]} a6 {[%emt 0:07:25]} 24. h3 {[%emt 0:04:23]} b5 {[%emt 0:05:20]} 25. Qd1 {[%emt 0:01:12]} Be6 {[%emt 0:04:05]} 26. b4 {[%emt 0:02:54]} cxb4 {[%emt 0:00:22]} 27. cxb4 {[%emt 0:00:02]} Qd7 {[%emt 0:00:13]} 28. Kh2 {[%emt 0:00:31]} Qf7 {[%emt 0:00:48]} 29. d4 {[%emt 0:01:37]} e4 {[%emt 0:02:17]} 30. d5 {[%emt 0:00:56]} Bd7 {[%emt 0:00:58]} 31. Qd4 {[%emt 0:02:19]} Rbc8 {[%emt 0:02:25]} 32. a3 {[%emt 0:05:49]} Qe7 {[%emt 0:00:02]} 33. Qb6 {[%emt 0:02:17]} f5 {[%emt 0:01:04]} 34. Nc2 {[%emt 0:04:11]} Nc4 {[%emt 0:02:04]} 35. Qa7 {[%emt 0:03:16]} Ra8 {[%emt 0:01:08]} 36. Qc5 {[%emt 0:00:22]} Rac8 {[%emt 0:01:44]} 37. Qa7 {[%emt 0:01:08]} Qd6 {[%emt 0:01:22]} 38. Qd4+ {[%emt 0:00:34]} Qe5 {[%emt 0:00:41]} 39. Qa7 {[%emt 0:01:42]} Rc7 {[%emt 0:00:43]} 40. Qxa6 {[%emt 0:01:00]} Rb8 {[%emt 0:02:07]} 41. Ne3 {[%emt 0:36:06]} Nxe3 {[%emt 0:08:07]} 42. Rxe3 {[%emt 0:00:00]} h4 {[%emt 0:05:07]} 43. Rd1 {[%emt 0:00:00]} Bc8 {[%emt 0:03:07]} 44. f4 {[%emt 0:00:00]} hxg3+ {[%emt 0:01:22]} 45. Rxg3 {[%emt 0:00:00]} Qf6 {[%emt 0:01:46]} 46. Qxf6+ {[%emt 0:00:00]} Kxf6 {[%emt 0:00:01]} 47. d6 {[%emt 0:00:00]} Rd7 {[%emt 0:00:17]} 48. Bf1 {[%emt 0:00:00]} Rb6 {[%emt 0:01:15]} 49. Rc3 {[%emt 0:00:00]} Bb7 {[%emt 0:00:34]} 50. Rc7 {[%emt 0:00:00]} Ke6 {[%emt 0:00:01]} 51. a4 {[%emt 0:00:00]} Rdxd6 {[%emt 0:00:30]} 52. Rdc1 {[%emt 0:01:33]} bxa4 {[%emt 0:00:46]} 53. Rg7 {[%emt 0:00:13]} Kf6 {[%emt 0:00:25]} 54. Rcc7 {[%emt 0:00:13]} Bd5 {[%emt 0:00:06]} 55. h4 {[%emt 0:00:39]} Bb3 {[%emt 0:07:12]} 56. h5 {[%emt 0:00:13]} gxh5 {[%emt 0:00:17]} 57. Rh7 {[%emt 0:00:14]} Ke6 {[%emt 0:00:05]} 58. Rc5 {[%emt 0:02:31]} Kf6 {[%emt 0:04:41]} 59. Rcc7 {[%emt 0:00:05]} Ke6 {[%emt 0:00:45]} 60. Rc5 {[%emt 0:00:05]} Rbc6 {[%emt 0:01:54]} 61. Rh6+ {[%emt 0:01:08]} Kd7 {[%emt 0:00:22]} 62. Rxc6 {[%emt 0:00:37]} Rxc6 {[%emt 0:05:52]} 63. Bb5 {[%emt 0:00:08]} Bd5 {[%emt 0:00:00]} 64. Bxa4 {[%emt 0:00:34]} e3 {[%emt 0:00:00]} 65. Kg1 {[%emt 0:00:28]} Kc7 {[%emt 0:00:00]} 66. Bxc6 {[%emt 0:00:03]} Bxc6 {[%emt 0:00:00]} 67. Rxh5 {[%emt 0:00:18]} Be4 {[%emt 0:00:00]} 68. Rh6 {[%emt 0:00:24]} Kb7 {[%emt 0:00:00]} 69. Kf1 {[%emt 0:00:11]} Bf3 {[%emt 0:00:00]} 70. Rh3 {[%emt 0:00:28]} e2+ {[%emt 0:00:00]} 71. Kf2 {[%emt 0:00:11]} Bg4 {[%emt 0:00:00]} 72. Rh6 {[%emt 0:00:51]} Kc7 {[%emt 0:00:00]} 73. Re6 {[%emt 0:00:12]} Kd7 {[%emt 0:00:00]} 74. Re5 {[%emt 0:00:06]} Kc6 {[%emt 0:00:00]} 75. Ke1 {[%emt 0:00:08]} Kb6 {[%emt 0:00:00]} 76. Kd2 {[%emt 0:00:05]} Kc6 {[%emt 0:00:00]} 77. Kc3 {[%emt 0:01:30]} Kb6 {[%emt 0:00:00]} 78. Kc4 {[%emt 0:00:23]} Bf3 {[%emt 0:00:00]} 79. Re6+ {[%emt 0:00:06]} Kc7 {[%emt 0:00:00]} 80. Re3 {[%emt 0:00:10]} Bg4 {[%emt 0:00:00]} 81. Kc5 {[%emt 0:00:05]} Bf3 {[%emt 0:00:00]} 82. b5 {[%emt 0:00:23]} Kb7 {[%emt 0:00:01]} 83. b6 {[%emt 0:01:18]} Kb8 {[%emt 0:00:17]} 84. Re8+ {[%emt 0:00:09]} Kb7 {[%emt 0:00:03]} 85. Re7+ {[%emt 0:00:13]} Kb8 {[%emt 0:00:01]} 86. Re3 {[%emt 0:00:42]} Kb7 {[%emt 0:00:06]} 87. Re7+ {[%emt 0:00:13]} Kb8 {[%emt 0:00:01]} 88. Re3 {[%emt 0:01:25]} Kb7 {[%emt 0:01:24]} 89. Kb5 {[%emt 0:00:00]} Kb8 {[%emt 0:00:43]} 90. Ka6 {[%emt 0:00:00]} Bb7+ {[%emt 0:00:07]} 91. Kb5 {[%emt 0:00:00]} Bf3 {[%emt 0:00:46]} 92. Kc5 {[%emt 0:00:36]} Kb7 {[%emt 0:00:06]} 93. Re7+ {[%emt 0:00:32]} Kb8 {[%emt 0:00:01]} 94. Re3 {[%emt 0:03:09]} 1/2-1/2

[Event "Lueneburg Open-A 2019"]
[Site "Lueneburg"]
[Date "2019.08.10"]
[Round "8.12"]
[White "Comes, Bruno"]
[Black "Blum, Frederik"]
[Result "1/2-1/2"]
[ECO "B74"]
[WhiteElo "2165"]
[BlackElo "2037"]
[Annotator "NA"]
[PlyCount "53"]
[EventDate "2019.08.03"]
[EventType "swiss"]
[EventCountry "GER"]
[SourceTitle "playchess.com"]
[Source "ChessBase"]
[SourceQuality "1"]
[TimeControl "40/5400+30:1800+30"]

1. e4 {[%emt 0:00:00]} c5 {[%emt 0:00:00]} 2. Nf3 {[%emt 0:00:00]} d6 {[%emt 0:00:00]} 3. d4 {[%emt 0:00:25]} cxd4 {[%emt 0:00:00]} 4. Nxd4 {[%emt 0:00:06]} Nf6 {[%emt 0:00:03]} 5. Nc3 {[%emt 0:00:10]} g6 {[%emt 0:00:07]} 6. Be3 {[%emt 0:01:07]} Bg7 {[%emt 0:00:18]} 7. Be2 {[%emt 0:00:41]} Nc6 {[%emt 0:00:29]} 8. O-O {[%emt 0:03:01]} O-O {[%emt 0:00:24]} 9. Nb3 {[%emt 0:00:43]} Na5 {[%emt 0:02:09]} 10. f4 {[%emt 0:07:42]} Bd7 {[%emt 0:12:54]} 11. h3 {[%emt 0:14:53]} Bc6 {[%emt 0:02:11]} 12. Qd3 {[%emt 0:02:43]} Nd7 {[%emt 0:16:56]} 13. Nd4 {[%emt 0:10:06]} Nc5 {[%emt 0:05:40]} 14. Nxc6 {[%emt 0:00:52]} Nxd3 {[%emt 0:05:40]} 15. Nxd8 {[%emt 0:00:28]} Nxb2 {[%emt 0:00:10]} 16. Nd5 {[%emt 0:19:34]} Rfxd8 {[%emt 0:14:50]} 17. Nxe7+ {[%emt 0:04:22]} Kf8 {[%emt 0:00:17]} 18. Nd5 {[%emt 0:00:14]} Nbc4 {[%emt 0:00:59]} 19. Rad1 {[%emt 0:03:14]} Nxe3 {[%emt 0:01:51]} 20. Nxe3 {[%emt 0:00:05]} Rac8 {[%emt 0:01:14]} 21. Rd5 {[%emt 0:02:35]} Nc6 {[%emt 0:06:43]} 22. Rfd1 {[%emt 0:02:19]} Nb4 {[%emt 0:02:55]} 23. Rxd6 {[%emt 0:00:50]} Rxd6 {[%emt 0:00:48]} 24. Rxd6 {[%emt 0:00:07]} Nxc2 {[%emt 0:03:42]} 25. Nd5 {[%emt 0:01:56]} Bd4+ {[%emt 0:02:48]} 26. Kh2 {[%emt 0:01:52]} Ne3 {[%emt 0:05:22]} 27. Nxe3 {[%emt 0:07:19]} 1/2-1/2

[Event "Lueneburg Open-A 2019"]
[Site "Lueneburg"]
[Date "2019.08.10"]
[Round "8.13"]
[White "Grote, Dirk"]
[Black "Ishak, Rashid"]
[Result "0-1"]
[ECO "D36"]
[WhiteElo "2037"]
[BlackElo "2141"]
[Annotator "NA"]
[PlyCount "73"]
[EventDate "2019.08.03"]
[EventType "swiss"]
[EventCountry "GER"]
[SourceTitle "playchess.com"]
[Source "ChessBase"]
[SourceQuality "1"]
[TimeControl "40/5400+30:1800+30"]

1. d4 {[%emt 0:00:00]} d5 {[%emt 0:00:00]} 2. c4 {[%emt 0:00:00]} e6 {[%emt 0:00:00]} 3. Nc3 {[%emt 0:00:04]} Nf6 {[%emt 0:00:00]} 4. cxd5 {[%emt 0:00:19]} exd5 {[%emt 0:00:00]} 5. Bg5 {[%emt 0:00:16]} Be7 {[%emt 0:00:08]} 6. e3 {[%emt 0:00:13]} h6 {[%emt 0:00:50]} 7. Bh4 {[%emt 0:00:34]} c6 {[%emt 0:01:15]} 8. Qc2 {[%emt 0:00:28]} O-O {[%emt 0:00:48]} 9. Bd3 {[%emt 0:00:45]} Nbd7 {[%emt 0:01:24]} 10. Nge2 {[%emt 0:00:35]} Ne8 {[%emt 0:05:02]} 11. Bg3 {[%emt 0:03:54]} Ndf6 {[%emt 0:01:17]} 12. f3 {[%emt 0:06:36]} c5 {[%emt 0:00:53]} 13. O-O {[%emt 0:07:29]} c4 {[%emt 0:10:10]} 14. Bf5 {[%emt 0:00:37]} Nd6 {[%emt 0:00:13]} 15. Bxc8 {[%emt 0:00:43]} Rxc8 {[%emt 0:00:08]} 16. e4 {[%emt 0:17:08]} dxe4 {[%emt 0:00:10]} 17. fxe4 {[%emt 0:00:07]} Ng4 {[%emt 0:07:18]} 18. Nd5 {[%emt 0:01:22]} Bg5 {[%emt 0:06:18]} 19. Bf4 {[%emt 0:19:35]} f5 {[%emt 0:01:23]} 20. Bxg5 {[%emt 0:08:40]} Qxg5 {[%emt 0:01:03]} 21. exf5 {[%emt 0:06:21]} Rce8 {[%emt 0:09:17]} 22. Nec3 {[%emt 0:14:27]} Nxf5 {[%emt 0:07:12]} 23. Ne4 {[%emt 0:04:04]} Qh5 {[%emt 0:29:20]} 24. h3 {[%emt 0:01:15]} Nge3 {[%emt 0:00:32]} 25. Nxe3 {[%emt 0:00:16]} Nxe3 {[%emt 0:00:27]} 26. Rxf8+ {[%emt 0:00:04]} Rxf8 {[%emt 0:00:13]} 27. Qd2 {[%emt 0:00:45]} Nd5 {[%emt 0:00:21]} 28. Nd6 {[%emt 0:03:11]} Nf4 {[%emt 0:08:49]} 29. Re1 {[%emt 0:02:03]} Nxh3+ {[%emt 0:01:45]} 30. gxh3 {[%emt 0:00:06]} Qg6+ {[%emt 0:00:13]} 31. Qg2 {[%emt 0:01:43]} Qxd6 {[%emt 0:00:07]} 32. Re4 {[%emt 0:00:28]} b5 {[%emt 0:01:13]} 33. Rg4 {[%emt 0:00:12]} Kh8 {[%emt 0:02:35]} 34. Qb7 {[%emt 0:01:33]} Qf6 {[%emt 0:00:39]} 35. Qg2 {[%emt 0:00:35]} b4 {[%emt 0:02:12]} 36. d5 {[%emt 0:00:54]} Qe5 {[%emt 0:00:16]} 37. Re4 {[%emt 0:01:08]} 0-1

[Event "Lueneburg Open-A 2019"]
[Site "Lueneburg"]
[Date "2019.08.10"]
[Round "8.14"]
[White "Wronn, Bernd"]
[Black "Deutschbein, Christopher"]
[Result "1-0"]
[ECO "A39"]
[WhiteElo "2128"]
[BlackElo "2015"]
[Annotator "NA"]
[PlyCount "99"]
[EventDate "2019.08.03"]
[EventType "swiss"]
[EventCountry "GER"]
[SourceTitle "playchess.com"]
[Source "ChessBase"]
[SourceQuality "1"]
[TimeControl "40/5400+30:1800+30"]

1. Nf3 {[%emt 0:00:00]} c5 {[%emt 0:00:00]} 2. c4 {[%emt 0:00:00]} Nf6 {[%emt 0:00:00]} 3. g3 {[%emt 0:02:10]} g6 {[%emt 0:00:19]} 4. Bg2 {[%emt 0:00:15]} Bg7 {[%emt 0:00:09]} 5. O-O {[%emt 0:00:20]} O-O {[%emt 0:00:06]} 6. d4 {[%emt 0:00:03]} cxd4 {[%emt 0:00:21]} 7. Nxd4 {[%emt 0:00:03]} Nc6 {[%emt 0:00:19]} 8. Nc3 {[%emt 0:01:00]} Qb6 {[%emt 0:03:33]} 9. Nb3 {[%emt 0:06:25]} d6 {[%emt 0:05:58]} 10. Bg5 {[%emt 0:02:08]} Be6 {[%emt 0:02:55]} 11. Nd5 {[%emt 0:03:00]} Bxd5 {[%emt 0:04:29]} 12. cxd5 {[%emt 0:00:03]} Na5 {[%emt 0:02:21]} 13. Nxa5 {[%emt 0:09:04]} Qxa5 {[%emt 0:01:34]} 14. Qb3 {[%emt 0:00:20]} h6 {[%emt 0:05:26]} 15. Bf4 {[%emt 0:07:58]} g5 {[%emt 0:07:59]} 16. Be3 {[%emt 0:00:30]} Qa6 {[%emt 0:04:42]} 17. h3 {[%emt 0:03:00]} Rac8 {[%emt 0:05:08]} 18. f4 {[%emt 0:10:59]} gxf4 {[%emt 0:06:52]} 19. Rxf4 {[%emt 0:01:48]} Qxe2 {[%emt 0:06:33]} 20. Rf2 {[%emt 0:01:44]} Qc4 {[%emt 0:06:27]} 21. Qxb7 {[%emt 0:01:23]} Rc7 {[%emt 0:01:01]} 22. Qb3 {[%emt 0:00:38]} Qxb3 {[%emt 0:00:36]} 23. axb3 {[%emt 0:00:01]} Rb8 {[%emt 0:00:43]} 24. Rxa7 {[%emt 0:02:18]} Rxa7 25. Bxa7 {[%emt 0:00:02]} Rxb3 {[%emt 0:00:41]} 26. Re2 {[%emt 0:14:32]} Rxg3 {[%emt 0:11:08]} 27. Rxe7 {[%emt 0:00:09]} Kf8 {[%emt 0:00:25]} 28. Re3 {[%emt 0:05:05]} Rxe3 {[%emt 0:05:14]} 29. Bxe3 {[%emt 0:00:19]} Nd7 {[%emt 0:07:29]} 30. b4 {[%emt 0:00:14]} Ke8 {[%emt 0:00:21]} 31. Kf1 {[%emt 0:01:55]} Kd8 {[%emt 0:01:45]} 32. Ke2 {[%emt 0:00:32]} Kc7 {[%emt 0:01:59]} 33. Kd2 {[%emt 0:00:41]} Nb8 {[%emt 0:00:53]} 34. Kd3 {[%emt 0:01:00]} Kb7 {[%emt 0:02:03]} 35. Bf4 {[%emt 0:02:25]} Kc7 {[%emt 0:00:26]} 36. Kc4 {[%emt 0:00:41]} Nd7 {[%emt 0:00:38]} 37. Kb5 {[%emt 0:00:44]} Nb8 {[%emt 0:01:10]} 38. Bf3 {[%emt 0:00:57]} Nd7 {[%emt 0:01:40]} 39. Bh5 {[%emt 0:00:21]} Ne5 {[%emt 0:03:01]} 40. Be3 {[%emt 0:01:32]} Kb7 {[%emt 0:01:47]} 41. Bd4 {[%emt 0:31:35]} f6 {[%emt 0:07:56]} 42. Be8 {[%emt 0:00:00]} Nd3 {[%emt 0:03:22]} 43. Bc6+ {[%emt 0:00:00]} Kc7 {[%emt 0:00:16]} 44. Bb6+ {[%emt 0:00:00]} Kb8 {[%emt 0:00:14]} 45. Bd7 {[%emt 0:00:00]} Kb7 {[%emt 0:00:11]} 46. Bd4 {[%emt 0:00:00]} Bh8 {[%emt 0:06:15]} 47. Bf5 {[%emt 0:00:00]} Nf4 {[%emt 0:00:32]} 48. Be6 {[%emt 0:00:00]} Bg7 {[%emt 0:01:53]} 49. Kc4 {[%emt 0:00:00]} Bh8 {[%emt 0:01:26]} 50. Be3 {[%emt 0:00:00]} 1-0

[Event "Lueneburg Open-A 2019"]
[Site "Lueneburg"]
[Date "2019.08.10"]
[Round "8.15"]
[White "Koellner, Christof"]
[Black "Koellner, Aaron Noah"]
[Result "0-1"]
[ECO "D04"]
[WhiteElo "2091"]
[BlackElo "2044"]
[Annotator "NA"]
[PlyCount "126"]
[EventDate "2019.08.03"]
[EventType "swiss"]
[EventCountry "GER"]
[SourceTitle "playchess.com"]
[Source "ChessBase"]
[SourceQuality "1"]
[TimeControl "40/5400+30:1800+30"]

1. d4 {[%emt 0:00:00]} d5 {[%emt 0:00:00]} 2. Nf3 {[%emt 0:00:00]} Nf6 {[%emt 0:00:01]} 3. e3 {[%emt 0:00:00]} Bf5 {[%emt 0:00:39]} 4. Bd3 {[%emt 0:00:22]} Bg6 {[%emt 0:00:10]} 5. Ne5 {[%emt 0:00:27]} e6 {[%emt 0:01:26]} 6. b3 {[%emt 0:00:59]} Ne4 {[%emt 0:01:29]} 7. Bb2 {[%emt 0:06:12]} Bb4+ {[%emt 0:01:16]} 8. c3 {[%emt 0:01:39]} Bd6 {[%emt 0:00:06]} 9. Nxg6 {[%emt 0:07:07]} hxg6 {[%emt 0:00:19]} 10. Bxe4 {[%emt 0:01:49]} dxe4 {[%emt 0:00:06]} 11. Qc2 {[%emt 0:13:59]} f5 {[%emt 0:00:53]} 12. h3 {[%emt 0:02:51]} Qg5 {[%emt 0:03:48]} 13. g3 {[%emt 0:04:41]} Nd7 {[%emt 0:28:39]} 14. Qe2 {[%emt 0:05:11]} O-O-O {[%emt 0:03:13]} 15. Nd2 {[%emt 0:01:14]} Qh5 {[%emt 0:02:07]} 16. Nc4 {[%emt 0:06:05]} Be7 {[%emt 0:00:14]} 17. Qxh5 {[%emt 0:08:25]} Rxh5 {[%emt 0:00:09]} 18. Kf1 {[%emt 0:00:11]} b5 {[%emt 0:07:52]} 19. Na5 {[%emt 0:01:38]} Nb8 {[%emt 0:02:35]} 20. a4 {[%emt 0:02:30]} b4 {[%emt 0:02:31]} 21. Rc1 {[%emt 0:04:43]} Rd5 {[%emt 0:07:04]} 22. cxb4 {[%emt 0:01:10]} Bxb4 {[%emt 0:00:10]} 23. Nc4 {[%emt 0:03:33]} Nd7 {[%emt 0:02:53]} 24. Ba3 {[%emt 0:03:21]} Bxa3 {[%emt 0:01:33]} 25. Nxa3 {[%emt 0:00:02]} Kb7 {[%emt 0:02:23]} 26. Kg2 {[%emt 0:09:52]} Rh8 {[%emt 0:06:04]} 27. Rc4 {[%emt 0:06:29]} e5 {[%emt 0:02:45]} 28. Rhc1 {[%emt 0:00:57]} Rc8 {[%emt 0:00:16]} 29. Nb5 {[%emt 0:04:20]} c6 {[%emt 0:00:25]} 30. Nc3 {[%emt 0:00:59]} Rd6 {[%emt 0:00:09]} 31. Rb4+ {[%emt 0:00:33]} Ka8 {[%emt 0:02:20]} 32. Ne2 {[%emt 0:01:31]} a5 {[%emt 0:01:31]} 33. Rbc4 {[%emt 0:00:52]} Kb7 {[%emt 0:01:16]} 34. dxe5 {[%emt 0:00:46]} Nxe5 {[%emt 0:00:06]} 35. Rd4 {[%emt 0:00:29]} Rxd4 {[%emt 0:02:33]} 36. Nxd4 {[%emt 0:00:42]} Nd3 {[%emt 0:00:05]} 37. Rc4 {[%emt 0:00:46]} c5 {[%emt 0:01:00]} 38. Ne6 {[%emt 0:00:16]} Kc6 {[%emt 0:01:01]} 39. g4 {[%emt 0:01:36]} Kd5 {[%emt 0:01:36]} 40. gxf5 {[%emt 0:00:43]} gxf5 {[%emt 0:00:12]} 41. Nd4 {[%emt 0:03:14]} Rf8 {[%emt 0:03:31]} 42. Nb5 {[%emt 0:02:13]} g5 {[%emt 0:00:43]} 43. Nc3+ {[%emt 0:08:53]} Kc6 {[%emt 0:02:22]} 44. Nb5 {[%emt 0:04:32]} Ne5 {[%emt 0:01:50]} 45. Rc2 {[%emt 0:01:10]} Rf7 {[%emt 0:04:04]} 46. Na3 {[%emt 0:01:20]} Rb7 {[%emt 0:02:40]} 47. Rc3 {[%emt 0:01:18]} Rd7 {[%emt 0:02:37]} 48. Nb5 {[%emt 0:01:27]} Rd1 {[%emt 0:02:34]} 49. h4 {[%emt 0:04:07]} gxh4 {[%emt 0:03:36]} 50. Nd4+ {[%emt 0:00:43]} Kd5 {[%emt 0:00:14]} 51. Nxf5 {[%emt 0:00:28]} Nf3 {[%emt 0:00:26]} 52. Kh3 {[%emt 0:02:14]} Rh1+ {[%emt 0:00:46]} 53. Kg4 {[%emt 0:01:13]} Rg1+ {[%emt 0:00:16]} 54. Kh3 {[%emt 0:00:50]} Rh1+ {[%emt 0:05:10]} 55. Kg4 {[%emt 0:00:05]} Ne5+ {[%emt 0:00:22]} 56. Kf4 {[%emt 0:01:49]} Nd3+ {[%emt 0:00:11]} 57. Kg5 {[%emt 0:00:51]} h3 {[%emt 0:00:19]} 58. f3 {[%emt 0:01:10]} Rg1+ {[%emt 0:00:45]} 59. Kf6 {[%emt 0:00:46]} h2 {[%emt 0:01:04]} 60. fxe4+ {[%emt 0:00:21]} Kxe4 {[%emt 0:01:53]} 61. Rc4+ {[%emt 0:00:35]} Kf3 {[%emt 0:00:12]} 62. Nh4+ {[%emt 0:00:45]} Kxe3 {[%emt 0:01:07]} 63. Nf5+ {[%emt 0:00:41]} Kd2 {[%emt 0:00:09]} 0-1

[Event "Lueneburg Open-A 2019"]
[Site "Lueneburg"]
[Date "2019.08.10"]
[Round "8.16"]
[White "Kiesel, Lucas"]
[Black "Garbuszus, Juergen"]
[Result "1/2-1/2"]
[ECO "A88"]
[WhiteElo "1966"]
[BlackElo "2070"]
[Annotator "NA"]
[PlyCount "51"]
[EventDate "2019.08.03"]
[EventType "swiss"]
[EventCountry "GER"]
[SourceTitle "playchess.com"]
[Source "ChessBase"]
[SourceQuality "1"]
[TimeControl "40/5400+30:1800+30"]

1. d4 {[%emt 0:00:58]} f5 {[%emt 0:00:00]} 2. Nf3 {[%emt 0:00:10]} Nf6 {[%emt 0:00:00]} 3. c4 {[%emt 0:00:05]} g6 {[%emt 0:00:00]} 4. Nc3 {[%emt 0:00:30]} Bg7 {[%emt 0:00:00]} 5. g3 {[%emt 0:00:49]} O-O {[%emt 0:00:00]} 6. Bg2 {[%emt 0:00:07]} d6 {[%emt 0:00:00]} 7. O-O {[%emt 0:00:06]} c6 {[%emt 0:00:00]} 8. Rb1 {[%emt 0:01:08]} Ne4 {[%emt 0:04:53]} 9. Qc2 {[%emt 0:22:10]} a5 {[%emt 0:00:49]} 10. b3 {[%emt 0:05:26]} Nxc3 {[%emt 0:03:55]} 11. Qxc3 {[%emt 0:00:02]} Na6 {[%emt 0:02:23]} 12. Bb2 {[%emt 0:01:33]} Nc5 {[%emt 0:00:20]} 13. Qc2 {[%emt 0:02:04]} Ne4 {[%emt 0:00:10]} 14. Nd2 {[%emt 0:00:51]} Nf6 {[%emt 0:04:42]} 15. d5 {[%emt 0:15:50]} cxd5 {[%emt 0:06:40]} 16. cxd5 {[%emt 0:00:02]} Bd7 {[%emt 0:00:21]} 17. Qd3 {[%emt 0:02:58]} Rc8 {[%emt 0:06:25]} 18. Rbc1 {[%emt 0:10:43]} Qb6 {[%emt 0:02:21]} 19. Nf3 {[%emt 0:06:25]} Bb5 {[%emt 0:04:24]} 20. Qd4 {[%emt 0:03:07]} Qa6 {[%emt 0:00:02]} 21. Qe3 {[%emt 0:01:08]} Kh8 {[%emt 0:05:14]} 22. Ng5 {[%emt 0:07:05]} Rce8 {[%emt 0:12:36]} 23. Ne6 {[%emt 0:00:37]} Bxe2 {[%emt 0:01:47]} 24. Rfe1 {[%emt 0:01:52]} Bb5 {[%emt 0:02:17]} 25. Nc7 {[%emt 0:00:57]} f4 {[%emt 0:04:01]} 26. gxf4 {[%emt 0:00:32]} 1/2-1/2

[Event "Lueneburg Open-A 2019"]
[Site "Lueneburg"]
[Date "2019.08.10"]
[Round "8.17"]
[White "Reuker, Matthias"]
[Black "Stork, Oliver"]
[Result "0-1"]
[ECO "B15"]
[WhiteElo "2012"]
[BlackElo "2322"]
[Annotator "NA"]
[PlyCount "78"]
[EventDate "2019.08.03"]
[EventType "swiss"]
[EventCountry "GER"]
[SourceTitle "playchess.com"]
[Source "ChessBase"]
[SourceQuality "1"]
[TimeControl "40/5400+30:1800+30"]

1. e4 {[%emt 0:00:00]} c6 {[%emt 0:00:00]} 2. d4 {[%emt 0:00:00]} d5 {[%emt 0:00:00]} 3. Nd2 {[%emt 0:00:00]} dxe4 {[%emt 0:00:00]} 4. Nxe4 {[%emt 0:00:02]} Nf6 {[%emt 0:00:04]} 5. Nxf6+ {[%emt 0:00:06]} exf6 {[%emt 0:00:06]} 6. c3 {[%emt 0:00:09]} Bd6 {[%emt 0:00:05]} 7. Bd3 {[%emt 0:00:05]} O-O {[%emt 0:00:07]} 8. Ne2 {[%emt 0:00:19]} Re8 {[%emt 0:00:07]} 9. Qc2 {[%emt 0:00:06]} h5 {[%emt 0:00:05]} 10. O-O {[%emt 0:00:34]} Qc7 {[%emt 0:01:35]} 11. h3 {[%emt 0:00:37]} Nd7 {[%emt 0:01:48]} 12. Be3 {[%emt 0:02:58]} Nf8 {[%emt 0:06:32]} 13. c4 {[%emt 0:03:06]} g6 {[%emt 0:05:03]} 14. c5 {[%emt 0:01:13]} Be7 {[%emt 0:00:12]} 15. Nf4 {[%emt 0:01:21]} Ne6 {[%emt 0:19:26]} 16. Bxg6 {[%emt 0:24:53]} Nxf4 {[%emt 0:00:28]} 17. Bxf7+ {[%emt 0:00:06]} Kxf7 {[%emt 0:02:26]} 18. Qh7+ {[%emt 0:01:23]} Ke6 {[%emt 0:24:33]} 19. Qe4+ {[%emt 0:00:13]} Kd7 {[%emt 0:00:19]} 20. Bxf4 {[%emt 0:00:13]} Bd6 {[%emt 0:06:44]} 21. Qf5+ {[%emt 0:05:03]} Kd8 {[%emt 0:00:07]} 22. cxd6 {[%emt 0:00:14]} Qf7 {[%emt 0:02:29]} 23. Qd3 {[%emt 0:02:11]} Be6 {[%emt 0:02:19]} 24. Rfe1 {[%emt 0:06:19]} Kd7 {[%emt 0:04:37]} 25. h4 {[%emt 0:02:50]} Bc4 {[%emt 0:13:28]} 26. Qh3+ {[%emt 0:00:09]} Be6 {[%emt 0:00:08]} 27. Qc3 {[%emt 0:00:25]} b6 {[%emt 0:02:15]} 28. b4 {[%emt 0:06:32]} Bd5 {[%emt 0:01:36]} 29. b5 {[%emt 0:05:17]} Qg8 {[%emt 0:01:20]} 30. Qh3+ {[%emt 0:00:40]} Qg4 {[%emt 0:00:12]} 31. Qxg4+ {[%emt 0:01:07]} hxg4 {[%emt 0:00:01]} 32. bxc6+ {[%emt 0:02:00]} Bxc6 {[%emt 0:00:43]} 33. Red1 {[%emt 0:09:39]} Re4 {[%emt 0:01:32]} 34. g3 {[%emt 0:00:18]} Bd5 {[%emt 0:01:12]} 35. Rdc1 {[%emt 0:07:45]} Rxd4 {[%emt 0:02:21]} 36. Rc7+ {[%emt 0:00:19]} Ke6 {[%emt 0:00:23]} 37. h5 {[%emt 0:03:21]} Rh8 {[%emt 0:00:25]} 38. h6 {[%emt 0:00:33]} Rxf4 {[%emt 0:00:06]} 39. Re7+ {[%emt 0:01:40]} Kxd6 {[%emt 0:00:06]} 0-1

[Event "Lueneburg Open-A 2019"]
[Site "Lueneburg"]
[Date "2019.08.10"]
[Round "8.18"]
[White "Fischer, Thomas"]
[Black "Buchenau, Frank"]
[Result "0-1"]
[ECO "C02"]
[WhiteElo "2106"]
[BlackElo "2294"]
[Annotator "NA"]
[PlyCount "50"]
[EventDate "2019.08.03"]
[EventType "swiss"]
[EventCountry "GER"]
[SourceTitle "playchess.com"]
[Source "ChessBase"]
[SourceQuality "1"]
[TimeControl "40/5400+30:1800+30"]

1. e4 {[%emt 0:00:00]} e6 {[%emt 0:00:55]} 2. d4 {[%emt 0:00:00]} d5 {[%emt 0:00:06]} 3. e5 {[%emt 1:31:30]} c5 4. c3 {[%emt 0:00:00]} Qb6 {[%emt 0:00:38]} 5. Nf3 {[%emt 0:00:00]} Bd7 {[%emt 0:00:10]} 6. Bd3 {[%emt 0:00:00]} cxd4 {[%emt 0:00:32]} 7. cxd4 {[%emt 0:00:00]} Nc6 {[%emt 0:00:22]} 8. O-O {[%emt 0:00:00]} Nxd4 {[%emt 0:00:55]} 9. Nxd4 {[%emt 0:00:00]} Qxd4 {[%emt 0:00:09]} 10. Qe2 {[%emt 0:00:00]} Ne7 {[%emt 0:02:44]} 11. Nc3 {[%emt 0:00:00]} Nc6 {[%emt 0:01:52]} 12. Nb5 {[%emt 0:00:00]} Qb6 {[%emt 0:02:14]} 13. a4 {[%emt 0:00:00]} a6 {[%emt 0:07:34]} 14. Be3 {[%emt 0:00:00]} Qd8 {[%emt 0:02:50]} 15. Nd6+ {[%emt 0:00:00]} Bxd6 {[%emt 0:00:26]} 16. exd6 {[%emt 0:00:00]} O-O {[%emt 0:01:45]} 17. Ra3 {[%emt 0:00:00]} e5 {[%emt 0:07:29]} 18. Rd1 {[%emt 0:00:00]} d4 {[%emt 0:10:37]} 19. Bxh7+ {[%emt 0:00:00]} Kxh7 {[%emt 0:01:28]} 20. Qh5+ {[%emt 0:00:00]} Kg8 {[%emt 0:00:06]} 21. Bh6 {[%emt 0:00:00]} g6 {[%emt 0:03:03]} 22. Rg3 {[%emt 0:00:00]} Kh7 {[%emt 0:03:07]} 23. Qe2 {[%emt 0:00:00]} Kxh6 {[%emt 0:02:47]} 24. Rdd3 {[%emt 0:00:00]} Kg7 {[%emt 0:01:46]} 25. h4 {[%emt 0:00:51]} Qxh4 {[%emt 0:01:19]} 0-1